bitfinex/quotes_ETHUSD_20240719
["timestamp","ask_amount","ask_price","bid_price","bid_amount"]
[1721381736414,2.93953,3401.9,3401.2,2.94007]
[1721381736604,2.93945,3402.0,3401.3,2.94004]
[1721381737228,1.7,3402.1,3400.8,2.94041]
[1721381737517,2.93994,3401.5,3400.8,2.94041]
[1721381737705,2.93994,3401.5,3400.9,0.588106]
[1721381738578,2.93994,3401.5,3400.9,3.528486]
[1721381738808,2.9398,3401.6,3401.0,2.9403]
[1721381738996,2.9398,3401.6,3401.1,2.42]
[1721381739197,2.93973,3401.7,3400.9,0.588106]
[1721381739198,2.93988,3401.5,3400.9,0.588106]
[1721381739402,2.93988,3401.5,3401.0,0.5948516]
[1721381743776,2.93973,3401.7,3401.0,0.5948516]
[1721381743979,2.93973,3401.7,3401.1,2.9402]
[1721381744295,2.93973,3401.7,3401.0,0.5948516]
[1721381744296,2.93979,3401.6,3401.0,0.5948516]
[1721381744675,2.93979,3401.6,3401.0,3.5351516]
[1721381744876,2.93979,3401.6,3401.1,0.64754716]
[1721381746284,2.93968,3401.8,3401.1,3.58776716]
[1721381746687,2.93973,3401.7,3401.1,3.58776716]
[1721381748184,2.93954,3401.9,3401.1,3.58772716]
[1721381748379,2.93954,3401.9,3401.3,2.93999]
[1721381750087,2.93954,3401.9,3401.3,5.40119]
[1721381751535,2.93954,3401.9,3401.3,8.34117]
[1721381751848,2.93954,3401.9,3401.3,5.40118]
[1721381752658,5.87915,3401.9,3401.3,5.40118]
[1721381752938,2.93954,3401.9,3401.3,5.40118]
[1721381753912,5.87915,3401.9,3401.3,5.40118]
[1721381754821,2.93954,3401.9,3401.3,5.40118]
[1721381755542,2.93954,3401.9,3401.3,6.33662695]
[1721381757741,2.93954,3401.9,3401.4,2.93995]
[1721381758157,7.45,3402.3,3401.3,6.33662695]
[1721381758158,7.45,3402.3,3401.6,2.93979]
[1721381758361,2.93887,3402.7,3401.8,2.93953]
[1721381758563,2.93907,3402.5,3401.8,2.93953]
[1721381758847,5.87816,3402.5,3401.8,2.93953]
[1721381759345,2.93907,3402.5,3401.8,2.93953]
[1721381759983,2.93911,3402.4,3401.8,2.93953]
[1721381760864,2.93919,3402.3,3401.8,2.93953]
[1721381762284,2.93919,3402.3,3401.8,3.58844894]
[1721381762990,2.93919,3402.3,3401.4,3.03290939]
[1721381762991,2.4148,3402.3,3401.4,3.03290939]
[1721381763197,2.93953,3401.9,3401.4,2.423]
[1721381764056,2.93953,3401.9,3401.2,0.41825788]
[1721381764945,2.93953,3401.9,3401.2,3.35837788]
[1721381765151,2.93962,3401.8,3401.2,3.35837788]
[1721381765446,2.93953,3401.9,3401.3,0.92998995]
[1721381765671,2.93979,3401.6,3401.2,0.41825788]
[1721381765880,2.93979,3401.6,3401.0,7.0005216]
[1721381766193,2.93979,3401.6,3401.1,2.55649355]
[1721381766385,2.93979,3401.6,3401.0,7.0005216]
[1721381766590,2.93989,3401.5,3401.0,3.0012516]
[1721381766915,2.93996,3401.4,3401.0,3.0012516]
[1721381767118,2.93996,3401.4,3401.0,0.5948516]
[1721381767826,2.93996,3401.4,3400.7,5.42513]
[1721381767978,2.93996,3401.4,3400.8,2.55670543]
[1721381768204,2.93989,3401.5,3400.9,1.02265257]
[1721381768205,2.9399,3401.5,3400.9,1.02265257]
[1721381768398,2.9399,3401.5,3400.8,2.94048]
[1721381768594,2.9399,3401.5,3400.9,1.02267133]
[1721381768828,2.9399,3401.5,3400.9,1.10572807]
[1721381769338,2.93996,3401.4,3400.9,1.10572807]
[1721381772451,2.93984,3401.6,3400.9,4.04610807]
[1721381772615,4.63974,3401.7,3400.9,4.04610807]
[1721381773124,2.93988,3401.5,3400.9,4.04610807]
[1721381774441,2.93997,3401.4,3400.9,1.10572807]
[1721381779369,3.99879,3401.6,3400.9,4.04610807]
[1721381779370,2.93988,3401.5,3400.9,4.04610807]
[1721381779529,2.93988,3401.5,3401.0,0.65308081]
[1721381780861,2.93974,3401.7,3401.0,0.65308081]
[1721381781164,7.45,3401.9,3401.1,2.344]
[1721381781370,7.45,3401.9,3401.2,3.23978808]
[1721381781371,2.93962,3401.8,3401.2,3.23978808]
[1721381781553,2.93972,3401.7,3401.1,2.344]
[1721381782468,2.93979,3401.6,3401.1,5.28421]
[1721381782630,2.93962,3401.8,3401.1,2.344]
[1721381782631,2.93964,3401.8,3401.1,2.344]
[1721381782833,2.94002,3401.4,3400.7,5.86466939]
[1721381783038,2.94002,3401.4,3400.8,2.55669088]
[1721381783381,2.94002,3401.4,3400.8,2.94048]
[1721381784189,1.7,3401.7,3400.7,2.3142]
[1721381784190,2.94023,3401.1,3400.7,2.3142]
[1721381784392,2.94023,3401.1,3400.3,4.16071878]
[1721381784393,2.94047,3400.9,3400.3,5.2482]
[1721381784684,2.94047,3400.9,3400.4,1.02284215]
[1721381784685,3.99947,3400.9,3400.4,1.02284215]
[1721381784858,2.94047,3400.9,3400.3,5.2482]
[1721381785061,2.94047,3400.9,3400.3,6.12811894]
[1721381785473,1.059,3400.5,3399.9,5.2153]
[1721381785654,1.059,3400.5,3399.9,2.2741]
[1721381785853,1.059,3400.3,3399.6,2.2741]
[1721381786194,2.94109,3400.1,3399.6,2.2741]
[1721381786471,4.00009,3400.1,3399.6,2.2741]
[1721381787043,2.94109,3400.1,3399.6,2.2741]
[1721381787243,4.00009,3400.1,3399.6,2.2741]
[1721381787542,1.059,3400.3,3399.6,2.2741]
[1721381788185,1.7,3400.5,3399.6,2.2741]
[1721381788370,2.411363,3400.5,3399.6,2.2741]
[1721381788684,2.94109,3400.1,3399.6,2.2741]
[1721381789801,2.94118,3400.0,3399.6,2.2741]
[1721381790088,2.94127,3399.9,3399.3,2.4544]
[1721381790388,2.94127,3399.9,3399.4,0.539626]
[1721381790749,2.941,3400.2,3399.4,3.481306]
[1721381790750,2.94117,3400.1,3399.4,3.481306]
[1721381791648,2.941,3400.2,3399.4,3.481306]
[1721381791850,2.94084,3400.4,3399.8,2.94134]
[1721381792146,2.94084,3400.4,3400.0,2.3326]
[1721381792579,2.94065,3400.6,3399.6,2.3326]
[1721381793649,7.45,3400.7,3400.0,2.94115]
[1721381793856,10.39058,3400.7,3400.0,2.2648]
[1721381794251,7.45,3400.7,3400.2,2.94097]
[1721381794453,2.94028,3401.1,3400.3,3.461477]
[1721381794680,5.94032,3401.0,3400.3,3.461477]
[1721381795089,2.94015,3401.2,3400.5,2.94067]
[1721381795253,3.0,3401.1,3400.5,2.94067]
[1721381796406,5.94023,3401.1,3400.3,3.461477]
[1721381796555,5.94023,3401.1,3400.4,0.6402537]
[1721381797159,2.94032,3401.0,3400.1,2.94106]
[1721381797356,2.9406,3400.7,3400.1,2.94106]
[1721381797782,2.94045,3400.9,3400.2,2.941]
[1721381798321,2.94049,3400.8,3400.2,2.941]
[1721381798592,2.94049,3400.8,3400.3,0.814697]
[1721381798757,2.94032,3401.0,3400.3,3.755607]
[1721381799210,2.94032,3401.0,3400.3,0.814697]
[1721381799373,3.0,3401.1,3400.3,0.814697]
[1721381799374,3.0,3401.1,3400.4,2.9408]
[1721381799567,3.0,3401.2,3400.4,2.9408]
[1721381799896,3.0,3401.2,3400.4,3.3163497]
[1721381800282,2.94024,3401.1,3400.4,3.3163497]
[1721381800861,2.94031,3401.0,3400.4,2.9408]
[1721381801491,2.94056,3400.8,3400.2,2.941]
[1721381804582,2.94052,3400.8,3400.2,5.3885]
[1721381806328,2.94042,3400.9,3400.3,2.94086]
[1721381806520,2.94025,3401.1,3400.4,2.94077]
[1721381806720,5.94007,3401.3,3400.4,2.94077]
[1721381806721,2.94031,3401.0,3400.4,2.94077]
[1721381808733,2.94014,3401.2,3400.4,2.94077]
[1721381808899,3.0,3401.1,3400.6,2.9406]
[1721381810428,3.0,3401.1,3400.4,5.88153]
[1721381810429,5.94022,3401.1,3400.4,5.88153]
[1721381810608,5.94022,3401.1,3400.5,2.94073]
[1721381811427,5.94022,3401.1,3400.4,2.94076]
[1721381811618,5.94022,3401.1,3400.5,2.94074]
[1721381812419,3.0,3401.1,3400.6,2.94065]
[1721381812718,5.94015,3401.2,3400.6,2.94065]
[1721381814345,7.970812,3401.2,3400.6,2.94065]
[1721381814663,7.970812,3401.2,3400.4,2.94076]
[1721381814664,2.94033,3401.0,3400.4,2.94076]
[1721381814953,2.3691,3400.9,3399.8,5.93718939]
[1721381815168,2.94085,3400.4,3399.7,2.94143]
[1721381817070,2.94096,3400.3,3399.6,2.94148]
[1721381817574,2.94123,3400.0,3399.4,2.94168]
[1721381818126,2.94109,3400.1,3399.5,2.94159]
[1721381819066,2.94088,3400.4,3399.7,2.94136]
[1721381819281,2.94083,3400.4,3399.7,2.94136]
[1721381819431,2.94083,3400.4,3399.8,2.94134]
[1721381820648,2.94083,3400.4,3399.9,2.2973]
[1721381820840,7.45,3400.5,3399.9,5.23854]
[1721381821376,10.39075,3400.5,3399.9,5.23854]
[1721381821578,7.45,3400.5,3400.1,2.94106]
[1721381821893,2.94059,3400.7,3400.1,2.94106]
[1721381825315,3.828691,3400.7,3400.1,2.94106]
[1721381825821,2.94065,3400.6,3400.0,2.94117]
[1721381826025,2.94076,3400.5,3399.9,2.2973]
[1721381826313,2.94076,3400.5,3399.7,2.9414]
[1721381826314,2.94092,3400.3,3399.7,2.9414]
[1721381826515,2.94075,3400.5,3399.8,2.94128]
[1721381826696,2.94083,3400.4,3399.8,2.94128]
[1721381826894,5.94054,3400.8,3400.1,2.94102]
[1721381827209,2.94059,3400.7,3400.1,2.94102]
[1721381828617,3.0,3400.8,3400.1,2.94102]
[1721381828618,2.94031,3401.0,3400.3,2.94088]
[1721381828824,2.94031,3401.0,3400.3,3.76498]
[1721381829406,2.94031,3401.0,3400.3,2.94088]
[1721381830128,2.94031,3401.0,3400.4,2.94081]
[1721381830516,2.9404,3400.9,3400.2,2.94094]
[1721381830698,2.94071,3400.6,3399.9,2.94123]
[1721381831108,2.94089,3400.4,3399.8,2.4501]
[1721381831312,2.94104,3400.2,3399.5,2.94157]
[1721381831524,4.64096,3400.3,3399.4,2.3336]
[1721381831684,4.64096,3400.3,3399.1,2.94194]
[1721381831685,2.94135,3399.8,3399.1,2.94188]
[1721381831982,2.94135,3399.8,3399.2,3.96501847]
[1721381832182,2.94126,3399.9,3399.3,2.94174]
[1721381835329,2.94134,3399.8,3399.1,2.94188]
[1721381835508,2.94134,3399.8,3399.2,2.94184]
[1721381836036,2.94145,3399.7,3399.2,2.94184]
[1721381836490,2.94145,3399.7,3399.0,2.94197]
[1721381838326,2.94153,3399.6,3399.0,2.94197]
[1721381839221,2.94162,3399.5,3398.8,2.94214]
[1721381839433,2.94169,3399.4,3398.7,2.94226]
[1721381839808,2.94169,3399.4,3398.5,5.40475]
[1721381840102,2.94169,3399.4,3398.5,2.94245]
[1721381840323,2.94206,3399.0,3398.3,2.94263]
[1721381840535,2.94206,3399.0,3398.4,2.94255]
[1721381840738,2.94206,3399.0,3398.4,3.756348]
[1721381841648,2.94186,3399.2,3398.5,2.94247]
[1721381842211,2.94186,3399.2,3398.6,2.94238]
[1721381843931,2.94171,3399.4,3398.6,2.94238]
[1721381844138,2.94171,3399.4,3398.8,2.9422]
[1721381844640,12.79901,3399.5,3398.9,2.94212]
[1721381844844,14.04036978,3399.5,3398.9,2.94212]
[1721381845652,2.9417,3399.4,3398.8,2.9422]
[1721381850422,2.94201,3399.1,3398.5,2.94247]
[1721381851650,2.94152,3399.6,3398.2,2.2528]
[1721381851953,5.94161,3399.5,3398.9,2.94207]
[1721381852158,2.94169,3399.4,3398.9,2.94207]
[1721381852361,2.94169,3399.4,3398.7,2.9423]
[1721381853551,2.94196,3399.1,3398.5,2.94243]
[1721381854855,5.40104,3399.2,3398.5,2.94243]
[1721381855154,5.40104,3399.2,3398.3,5.88518]
[1721381855155,2.94205,3399.0,3398.3,5.88518]
[1721381855650,2.94205,3399.0,3398.4,2.94255]
[1721381855823,3.8357759,3399.0,3398.4,2.94255]
[1721381856024,3.8357759,3399.0,3397.7,2.94315]
[1721381856025,2.94253,3398.5,3397.7,2.94315]
[1721381856357,2.94245,3398.6,3397.8,2.94306]
[1721381856526,2.94205,3399.0,3398.3,2.94264]
[1721381856722,2.94213,3398.9,3398.3,2.94264]
[1721381857434,5.35025,3399.1,3398.5,2.94246]
[1721381857619,5.35025,3399.1,3398.3,2.94264]
[1721381857821,5.235959,3399.3,3398.6,2.94237]
[1721381857822,2.94179,3399.3,3398.6,2.94237]
[1721381858137,3.0,3399.2,3398.6,2.94237]
[1721381858338,3.0,3399.2,3398.7,2.9423]
[1721381858844,2.94178,3399.3,3398.6,3.530811]
[1721381859858,2.94178,3399.3,3398.7,2.9423]
[1721381860456,5.42841,3399.5,3398.8,2.9422]
[1721381860760,2.4868,3399.5,3398.7,2.94227]
[1721381860927,2.4868,3399.5,3399.0,2.94203]
[1721381861637,5.24425,3399.8,3399.0,2.94198]
[1721381861824,2.94144,3399.7,3399.0,2.94198]
[1721381864438,2.94144,3399.7,3399.1,2.94194]
[1721381866176,2.94099,3400.3,3398.5,2.3554]
[1721381866177,2.4399,3400.1,3398.5,3.1]
[1721381866332,12.83079,3400.4,3399.7,2.94142]
[1721381866536,5.38079,3400.4,3399.7,2.94142]
[1721381867375,1.7,3400.7,3400.1,2.94101]
[1721381867376,2.3126,3400.7,3400.1,2.94101]
[1721381867576,2.94049,3400.8,3400.2,2.941]
[1721381869377,1.7,3400.7,3400.0,2.94112]
[1721381869681,2.94075,3400.5,3399.8,2.94127]
[1721381869887,5.34233,3400.4,3399.8,2.94127]
[1721381870481,5.34233,3400.4,3399.6,2.94146]
[1721381870645,2.4015,3400.4,3399.6,2.94146]
[1721381871071,5.34234,3400.4,3399.4,5.29893]
[1721381871260,2.94096,3400.3,3399.5,5.94152]
[1721381871745,3.8331408,3400.2,3399.5,2.9416]
[1721381871952,2.94109,3400.1,3399.5,2.9416]
[1721381872581,0.8920808,3400.2,3399.3,2.94178]
[1721381872582,2.94117,3400.0,3399.3,2.94172]
[1721381873646,2.94117,3400.0,3399.3,2.9497475]
[1721381873847,2.94117,3400.0,3399.4,2.94163]
[1721381874147,2.941,3400.2,3399.6,2.94151]
[1721381874582,2.941,3400.2,3399.6,2.9495375]
[1721381877983,1.7,3400.3,3399.7,2.9414]
[1721381878709,4.64099,3400.3,3399.7,0.0080275]
[1721381878861,2.94105,3400.2,3399.7,0.0080275]
[1721381879956,2.94109,3400.1,3399.7,0.0080275]
[1721381880256,5.19832,3399.9,3399.7,0.0080275]
[1721381882959,2.9411,3400.1,3399.7,0.0080275]
[1721381884305,2.94126,3399.9,3399.7,0.0080275]
[1721381884614,0.294126,3399.8,3399.7,0.0080275]
[1721381884790,2.94126,3399.9,3399.7,0.0080275]
[1721381885664,2.94109,3400.1,3399.7,0.0080275]
[1721381886782,2.94119,3400.0,3399.7,0.0080275]
[1721381888529,2.94127,3399.9,3399.7,0.0080275]
[1721381889422,2.94134,3399.8,3399.7,0.0080275]
[1721381889726,3.529601,3399.8,3399.7,0.0080275]
[1721381890300,6.470941,3399.8,3399.7,0.0080275]
[1721381890501,8.833841,3399.8,3399.7,0.0080275]
[1721381897306,14.775181,3399.8,3399.7,0.0080275]
[1721381897626,15.07990056,3399.8,3399.7,0.0080275]
[1721381904432,18.02124056,3399.8,3399.7,0.0080275]
[1721381908025,15.07990056,3399.8,3399.7,0.0080275]
[1721381916093,16.14090056,3399.8,3399.7,0.0080275]
[1721381917278,2.94204,3399.0,3398.9,2.2961]
[1721381917473,2.94245,3398.6,3398.2,2.4301]
[1721381918599,2.94245,3398.6,3398.2,3.267405]
[1721381918789,2.9423,3398.7,3398.3,2.4454]
[1721381919095,7.45,3399.1,3398.5,2.4454]
[1721381919548,10.39195,3399.1,3398.5,5.38779]
[1721381919748,10.39195,3399.1,3398.8,2.4781]
[1721381919749,7.45,3399.1,3398.8,2.4781]
[1721381921049,10.39203,3399.1,3398.8,2.4781]
[1721381921247,2.94212,3398.9,3398.8,2.4781]
[1721381921665,2.94223,3398.8,3398.3,2.4781]
[1721381921874,2.94212,3398.9,3398.3,2.4781]
[1721381922290,2.94231,3398.7,3398.3,2.4781]
[1721381923261,2.94244,3398.6,3398.3,2.4781]
[1721381925012,2.94248,3398.5,3398.3,2.4781]
[1721381925999,2.94266,3398.3,3397.9,2.294]
[1721381929319,2.94274,3398.2,3397.9,2.294]
[1721381933070,2.94282,3398.1,3397.5,2.4381]
[1721381933276,2.94282,3398.1,3397.5,6.213897]
[1721381934618,2.94282,3398.1,3397.5,2.4381]
[1721381934619,2.94294,3398.0,3397.5,2.4381]
[1721381935600,2.943,3397.9,3397.5,2.4381]
[1721381940398,2.94282,3398.1,3397.5,2.4381]
[1721381940602,2.94282,3398.1,3397.5,5.38144]
[1721381940834,2.94282,3398.1,3397.5,6.213926]
[1721381941027,2.94282,3398.1,3397.6,2.94324]
[1721381941712,4.64268,3398.3,3397.7,2.9431]
[1721381943129,2.94273,3398.2,3397.7,2.9431]
[1721381943287,2.94273,3398.2,3397.5,4.332586]
[1721381943288,2.94273,3398.2,3397.5,3.270586]
[1721381943990,2.94273,3398.2,3397.5,2.4381]
[1721381944914,1.062,3398.1,3397.5,2.4381]
[1721381945100,1.062,3398.1,3397.3,2.94346]
[1721381945101,4.00501,3397.9,3397.3,2.94346]
[1721381945398,2.94301,3397.9,3397.3,2.94346]
[1721381945709,2.94283,3398.1,3397.4,2.94341]
[1721381946032,2.94291,3398.0,3397.5,2.3741]
[1721381947733,2.94282,3398.1,3397.5,5.31743]
[1721381949400,2.9429,3398.0,3397.5,5.31743]
[1721381950945,4.0049,3398.0,3397.3,2.94345]
[1721381951910,4.0049,3398.0,3397.4,2.94342]
[1721381952655,2.94259,3398.4,3397.7,2.9431]
[1721381952864,5.88523,3398.4,3397.7,2.9431]
[1721381953014,2.94267,3398.3,3397.7,2.9431]
[1721381954015,2.94274,3398.2,3397.5,2.3925]
[1721381954266,2.943,3397.9,3397.5,2.3925]
[1721381954432,2.943,3397.9,3397.3,4.00551]
[1721381956738,2.94288,3398.1,3397.4,2.94341]
[1721381956937,2.94288,3398.1,3397.5,2.94333]
[1721381957773,2.94276,3398.2,3397.6,2.94324]
[1721381957941,5.88557,3398.2,3397.6,2.94324]
[1721381958142,2.94276,3398.2,3397.6,2.94324]
[1721381958366,2.94283,3398.1,3397.6,2.94324]
[1721381959239,2.94283,3398.1,3397.4,2.94341]
[1721381959551,2.94283,3398.1,3397.4,5.88675]
[1721381961984,2.9429,3398.0,3397.4,2.94334]
[1721381962347,2.94309,3397.8,3397.3,0.45029305]
[1721381963338,2.94309,3397.8,3397.2,5.41716]
[1721381963771,2.94309,3397.8,3397.2,8.36068]
[1721381964167,2.94309,3397.8,3397.2,5.41712]
[1721381966741,5.26769,3397.8,3397.2,2.94352]
[1721381967983,2.94317,3397.7,3397.2,2.94352]
[1721381968855,2.94317,3397.7,3397.1,1.062]
[1721381969068,2.94317,3397.7,3397.2,2.55942957]
[1721381969370,2.94317,3397.7,3397.1,4.00567]
[1721381969572,2.94317,3397.7,3397.2,2.55942946]
[1721381969778,2.94317,3397.7,3396.9,3.10540939]
[1721381969779,2.94334,3397.5,3396.9,3.10540939]
[1721381970079,2.94334,3397.5,3397.0,2.55954587]
[1721381970393,2.94334,3397.5,3397.1,1.02381835]
[1721381970698,2.94334,3397.5,3396.9,2.4955]
[1721381970851,2.94334,3397.5,3397.0,2.55960443]
[1721381971044,2.94334,3397.5,3396.9,2.4955]
[1721381971282,2.94334,3397.5,3396.8,4.61576939]
[1721381971283,2.94349,3397.4,3396.8,2.94386]
[1721381971618,4.040651,3397.5,3396.8,2.94386]
[1721381971619,2.94353,3397.3,3396.8,2.94386]
[1721381972286,2.94353,3397.3,3396.6,7.07039939]
[1721381972489,2.94353,3397.3,3396.7,2.55978448]
[1721381972690,2.94353,3397.3,3396.8,1.02391379]
[1721381972885,2.94353,3397.3,3396.7,2.94402]
[1721381973118,2.94353,3397.3,3396.8,1.02391229]
[1721381973429,3.63290178,3397.3,3396.6,7.07039939]
[1721381973594,2.94361,3397.2,3396.7,2.55978903]
[1721381973789,2.94361,3397.2,3396.6,5.39849]
[1721381974015,2.94361,3397.2,3396.7,1.0239215]
[1721381974203,2.94361,3397.2,3396.3,1.5596746]
[1721381974204,0.637508,3397.1,3396.3,3.07281051]
[1721381974405,0.637508,3397.1,3396.4,1.02401609]
[1721381974406,2.94391,3396.9,3396.4,1.02401609]
[1721381974606,2.94395,3396.8,3396.3,0.64481051]
[1721381974813,4.00584,3397.0,3396.3,0.64481051]
[1721381975122,2.94387,3396.9,3396.3,3.58918051]
[1721381975278,2.4483,3396.7,3396.3,0.64481051]
[1721381975702,5.39234,3396.7,3396.3,0.64481051]
[1721381977915,0.7587088,3396.9,3396.3,0.64481051]
[1721381978595,6.28991,3397.0,3396.3,0.64481051]
[1721381978794,2.94396,3396.8,3396.3,3.58918051]
[1721381979180,2.94396,3396.8,3396.3,0.64481051]
[1721381980217,2.94429,3396.4,3396.3,0.64481051]
[1721381981181,11.13128,3396.4,3396.3,0.64481051]
[1721381981386,12.538819,3396.4,3396.3,0.64481051]
[1721381983776,18.483109,3396.4,3396.3,0.64481051]
[1721381983885,18.483109,3396.4,3395.0,0.1]
[1721381983886,1.7,3395.4,3395.0,0.1]
[1721381984087,6.95284,3395.1,3395.0,0.1]
[1721381984314,7.33198378,3395.1,3395.0,0.1]
[1721381985126,7.28494685,3395.1,3395.0,0.1]
[1721381985792,4.33952685,3395.1,3395.0,0.1]
[1721381985995,2.94551,3395.0,3394.3,2.94609]
[1721381986458,2.94551,3395.0,3393.7,3.1]
[1721381986459,2.94547,3395.1,3393.7,3.1]
[1721381986661,2.94547,3395.1,3393.8,3.91982702]
[1721381986840,2.94547,3395.1,3394.2,2.94614]
[1721381987149,0.06187849,3394.3,3394.2,2.94614]
[1721381987503,2.94547,3395.1,3394.5,2.94594]
[1721381987711,2.94525,3395.3,3394.5,2.94586]
[1721381987925,7.64508,3395.5,3394.5,2.94586]
[1721381987926,5.94534,3395.2,3394.5,2.94586]
[1721381988355,1.7,3396.0,3394.5,3.029498]
[1721381988650,2.94501,3395.6,3394.9,2.94553]
[1721381989142,1.7,3396.0,3394.7,2.94574]
[1721381989143,4.64471,3396.0,3394.7,2.94574]
[1721381989703,2.94525,3395.3,3394.7,2.94574]
[1721381989905,2.94554,3395.0,3394.2,2.94612]
[1721381990136,2.94554,3395.0,3394.3,5.94611]
[1721381990446,2.9456,3394.9,3394.1,2.94623]
[1721381990774,2.94551,3395.0,3393.8,3.91982702]
[1721381991127,2.94551,3395.0,3393.9,2.94644]
[1721381991128,2.94572,3394.8,3393.9,2.94644]
[1721381991335,2.94572,3394.8,3394.1,2.94623]
[1721381991871,2.94579,3394.7,3394.1,2.94623]
[1721381992032,2.94564,3394.9,3394.1,2.94623]
[1721381992366,2.94552,3395.0,3393.9,2.94644]
[1721381992367,2.94569,3394.8,3394.2,2.94618]
[1721381992672,2.94552,3395.0,3394.2,3.535392]
[1721381992975,2.94552,3395.0,3394.3,2.94606]
[1721381993265,2.9456,3394.9,3394.3,2.94606]
[1721381995961,2.9456,3394.9,3394.1,2.94622]
[1721381995962,2.9457,3394.8,3394.1,2.94622]
[1721381996276,2.9457,3394.8,3394.1,2.94627]
[1721381997955,2.9457,3394.8,3394.2,2.94619]
[1721381999299,2.9457,3394.8,3393.8,0.81982702]
[1721381999300,2.94602,3394.5,3393.8,2.94651]
[1721381999570,2.94598,3394.5,3393.7,2.94655]
[1721381999736,2.94598,3394.5,3393.8,2.94653]
[1721381999941,2.94577,3394.7,3394.0,2.94636]
[1721382000140,2.946,3394.5,3393.8,2.94653]
[1721382000447,2.94585,3394.6,3393.8,2.94653]
[1721382000650,2.94574,3394.8,3393.6,0.0533702]
[1721382000856,2.94559,3394.9,3394.2,2.94612]
[1721382001064,4.004783,3394.8,3394.2,2.94612]
[1721382001774,4.004783,3394.8,3393.8,2.94653]
[1721382001775,2.94606,3394.4,3393.8,2.94653]
[1721382002001,1.7,3394.6,3393.6,3.0000002]
[1721382002002,2.94611,3394.3,3393.6,3.0000002]
[1721382002206,1.7,3394.1,3393.6,0.0533702]
[1721382002425,2.94663,3393.7,3393.6,0.0533702]
[1721382003808,2.94647,3393.9,3393.6,0.0533702]
[1721382004010,2.94661,3393.8,3393.6,0.0533702]
[1721382004174,2.94663,3393.7,3393.6,0.0533702]
[1721382004374,5.47367,3393.7,3393.6,0.0533702]
[1721382005590,8.4203,3393.7,3393.6,0.0533702]
[1721382006310,17.21973,3393.7,3393.6,0.0533702]
[1721382007305,4.64708,3393.2,3392.8,0.1497316]
[1721382007516,2.94715,3393.1,3392.8,0.1497316]
[1721382007675,2.94733,3392.9,3392.8,0.1497316]
[1721382007878,2.94715,3393.1,3392.8,0.1497316]
[1721382008079,2.94733,3392.9,3392.8,0.1497316]
[1721382008302,3.706778,3392.9,3392.8,0.1497316]
[1721382008612,6.654108,3392.9,3392.8,0.1497316]
[1721382008773,2.94733,3392.9,3392.8,0.1497316]
[1721382008973,5.89466,3392.9,3392.8,0.1497316]
[1721382009194,8.89466,3392.9,3392.8,0.1497316]
[1721382010187,5.94733,3392.9,3392.8,0.1497316]
[1721382010384,3.0,3392.9,3392.8,0.1497316]
[1721382010585,3.0,3393.0,3392.8,0.1497316]
[1721382010775,4.32376,3393.7,3392.8,3.0971316]
[1721382010776,4.64683,3393.5,3392.8,3.0971316]
[1721382010972,2.947,3393.3,3392.8,0.1497316]
[1721382011379,1.7,3393.0,3392.8,0.1497316]
[1721382011822,2.94733,3392.9,3392.8,0.1497316]
[1721382012674,2.93733,3392.9,3392.8,0.1497316]
[1721382013682,1.7,3393.0,3392.8,0.1497316]
[1721382014496,2.94733,3392.9,3392.8,0.1497316]
[1721382015022,6.2355203,3392.9,3392.8,0.1497316]
[1721382019438,9.2355203,3392.9,3392.8,0.1497316]
[1721382019603,12.1828503,3392.9,3392.8,0.1497316]
[1721382020244,12.7328503,3392.9,3392.8,0.1497316]
[1721382020968,10.9355203,3392.9,3392.8,0.1497316]
[1721382021839,7.9881903,3392.9,3392.8,0.1497316]
[1721382022932,7.64733,3392.9,3392.8,0.1497316]
[1721382023268,2.94693,3393.4,3392.8,0.1497316]
[1721382023629,2.947,3393.3,3392.8,0.1497316]
[1721382024150,1.7,3393.4,3392.8,0.1497316]
[1721382024151,2.94707,3393.2,3392.8,0.1497316]
[1721382024979,2.947,3393.3,3392.8,0.1497316]
[1721382025124,4.6469,3393.4,3392.8,3.0971216]
[1721382025329,2.94699,3393.3,3392.8,0.1497316]
[1721382026483,1.7,3393.4,3392.8,3.70160576]
[1721382026643,1.7,3393.4,3392.9,2.94727]
[1721382027269,5.89466,3392.9,3392.8,0.1497316]
[1721382027443,7.59466,3392.9,3392.8,0.1497316]
[1721382027800,11.648838,3392.9,3392.8,0.1497316]
[1721382028276,12.198838,3392.9,3392.8,0.1497316]
[1721382032561,15.146168,3392.9,3392.8,0.1497316]
[1721382034521,1.7,3391.8,3391.2,2.4603]
[1721382034682,2.94849,3391.6,3391.2,2.4603]
[1721382034864,4.6483,3391.8,3391.2,2.4603]
[1721382035179,4.6483,3391.8,3390.5,3.0]
[1721382035180,2.45964,3391.8,3390.4,0.60990939]
[1721382035398,2.94872,3391.3,3390.6,2.94926]
[1721382035720,2.9485,3391.6,3390.7,2.94922]
[1721382036124,2.9485,3391.6,3390.8,2.94914]
[1721382036125,2.94864,3391.4,3390.8,2.94914]
[1721382037095,2.94876,3391.3,3390.5,5.89874]
[1721382037294,2.94876,3391.3,3390.6,3.767644]
[1721382038119,2.94864,3391.4,3390.7,2.94923]
[1721382038897,2.94864,3391.4,3390.8,2.94915]
[1721382039410,2.94847,3391.6,3390.8,2.94915]
[1721382039411,2.94847,3391.6,3390.9,2.3076]
[1721382039719,2.94847,3391.6,3391.0,3.474625]
[1721382039934,3.30754857,3392.1,3391.0,3.078675]
[1721382039935,0.30754857,3392.1,3391.0,3.078675]
[1721382040085,0.30754857,3392.1,3391.7,2.94836]